bitfinex-derivatives/quotes_ETHF0:USTF0_20251119
["timestamp","ask_amount","ask_price","bid_price","bid_amount"]
[1763560473743,3.256e-05,3064.0,3063.9,7.4368]
[1763560473949,3.2078,3064.6,3064.2,0.52905]
[1763560474252,3.2078,3064.6,3064.2,3.2078]
[1763560474753,3.2078,3064.6,3064.4,0.52903]
[1763560475049,3.21129419,3064.6,3064.4,0.52903]
[1763560475752,0.00489045,3064.8,3064.7,0.52898]
[1763560476155,3.2078,3065.5,3065.3,1.4368]
[1763560476855,3.21186782,3065.5,3065.3,1.44088826]
[1763560477057,1.68517306,3065.4,3065.3,0.00408826]
[1763560477444,0.52888,3065.3,3065.1,0.00489045]
[1763560477756,0.52895,3064.9,3064.6,1.4368]
[1763560478153,3.2078,3065.0,3064.6,1.4368]
[1763560478154,3.73673,3065.0,3064.6,1.4368]
[1763560478451,0.52895,3064.9,3064.6,1.96844839]
[1763560478754,0.52897,3064.8,3064.6,1.43944839]
[1763560479349,0.52897,3064.8,3064.6,0.00264839]
[1763560479850,0.52898,3064.7,3064.6,0.00264839]
[1763560480657,0.52898,3064.7,3064.5,0.00489045]
[1763560480658,0.529,3064.6,3064.5,0.00489045]
[1763560480847,0.52909,3064.2,3063.9,1.4368]
[1763560481148,0.52905,3064.3,3064.0,0.5291]
[1763560481350,0.52907,3064.2,3064.0,0.5291]
[1763560481549,0.52909,3064.1,3064.0,0.00324825]
[1763560482654,3.2078,3064.4,3064.0,0.00324825]
[1763560483654,5.18231437,3065.2,3064.0,0.00324825]
[1763560483851,0.52907,3064.3,3064.0,0.00324825]
[1763560484160,3.2078,3064.4,3064.1,0.52909]
[1763560484550,0.52907,3064.2,3064.0,0.00324825]
[1763560484751,0.52909,3064.1,3064.0,0.00324825]
[1763560486154,0.52922,3063.3,3063.2,1.4368]
[1763560486353,1.97451437,3064.2,3063.2,1.4368]
[1763560486354,0.00489045,3063.6,3063.2,1.4368]
[1763560486550,0.00489045,3063.6,3063.3,0.52922]
[1763560486755,0.00489045,3063.6,3063.5,0.52919]
[1763560486951,3.73685,3064.3,3063.9,1.4368]
[1763560487156,3.2078,3064.3,3063.9,1.4368]
[1763560487356,0.52915,3063.8,3063.5,3.74082259]
[1763560487560,3.21031653,3064.3,3063.9,1.4368]
[1763560487957,0.52907,3064.2,3063.9,1.96592]
[1763560488161,0.52909,3064.1,3063.9,1.96592]
[1763560488357,0.5291,3064.0,3063.9,1.4368]
[1763560488556,0.52909,3064.1,3063.9,1.4368]
[1763560488754,0.52909,3064.1,3063.9,1.96592]
[1763560488954,3.21031653,3064.3,3064.1,0.52908]
[1763560489160,3.21031653,3064.3,3064.2,0.52907]
[1763560489555,3.21031653,3064.3,3064.1,0.52907]
[1763560490456,3.21031653,3064.3,3064.2,0.52907]
[1763560490863,3.21031653,3064.3,3064.2,0.56647912]
[1763560491652,0.53156653,3064.3,3064.2,0.03740912]
[1763560491858,3.73936653,3064.3,3064.2,0.03740912]
[1763560492863,3.21031653,3064.3,3064.2,0.03740912]
[1763560493066,3.73936653,3064.3,3064.2,0.03740912]
[1763560493461,3.73936653,3064.3,3064.2,2.51086778]
[1763560493659,3.21031653,3064.3,3064.2,3.03993778]
[1763560493858,3.21031653,3064.3,3064.2,5.57135588]
[1763560494066,3.73936653,3064.3,3064.2,5.12436384]
[1763560494268,3.73936653,3064.3,3064.2,4.48524796]
[1763560494566,0.53156653,3064.3,3064.2,3.95617796]
[1763560494762,0.53156653,3064.3,3064.2,4.48524796]
[1763560495062,0.00251653,3064.3,3064.2,4.51785118]
[1763560495259,3.2078,3064.7,3064.6,2.9663]
[1763560495462,0.52895,3064.9,3064.8,1.4368]
[1763560496262,0.53177571,3064.9,3064.8,1.4368]
[1763560496657,0.53177571,3064.9,3064.8,2.12512003]
[1763560497067,0.53177571,3064.9,3064.8,0.17141566]
[1763560497764,0.53177571,3064.9,3064.8,1.60821566]
[1763560498261,0.53177571,3064.9,3064.8,1.64081888]
[1763560498666,0.53177571,3064.9,3064.8,2.18185451]
[1763560498858,0.00282571,3064.9,3064.8,2.18185451]
[1763560499261,0.53177571,3064.9,3064.8,0.21608451]
[1763560499772,0.28034227,3064.4,3064.3,1.69776965]
[1763560500064,3.2078,3064.6,3064.5,2.96632]
[1763560500266,3.2078,3064.6,3064.3,1.7453827]
[1763560500267,0.52902,3064.5,3064.3,1.7453827]
[1763560500458,3.2078,3064.6,3064.1,2.4373]
[1763560500662,3.2078,3064.6,3064.5,2.4373]
[1763560501070,3.2078,3064.6,3064.5,2.96632]
[1763560501463,0.00282571,3064.9,3064.8,4.40307]
[1763560501770,0.53177571,3064.9,3064.8,3.8741]
[1763560501975,0.00282571,3064.9,3064.3,2.2525]
[1763560502361,0.52902,3064.5,3064.3,0.52905]
[1763560502670,0.00282571,3064.9,3064.2,4.6446]
[1763560502870,0.52902,3064.6,3064.5,2.2525]
[1763560503170,0.53177571,3064.9,3064.8,3.5031]
[1763560503369,0.00282571,3064.9,3064.8,4.03207]
[1763560503668,0.53379045,3065.2,3064.8,4.03207]
[1763560503669,3.73666,3065.4,3065.3,2.2525]
[1763560503861,3.2078,3065.4,3065.3,2.78138]
[1763560504061,3.2078,3065.9,3065.7,2.2525]
[1763560504262,1.97451437,3066.6,3065.4,1.2506]
[1763560504263,0.52876,3066.0,3065.9,2.70397829]
[1763560504668,0.53246113,3066.0,3065.9,2.70629247]
[1763560505468,3.74140045,3066.3,3066.2,2.2525]
[1763560506173,3.21269045,3066.3,3066.2,2.2525]
[1763560506371,3.21269045,3066.3,3066.0,1.2506]
[1763560506372,0.52874,3066.1,3066.0,1.2506]
[1763560506772,0.52876,3066.0,3065.9,0.00231418]
[1763560509179,3.21628034,3066.3,3065.9,0.00231418]
[1763560509471,0.52876,3066.0,3065.9,0.00231418]
[1763560510183,3.21628034,3066.3,3066.0,1.2506]
[1763560510583,0.52876,3066.0,3065.9,0.00231418]
[1763560511077,3.21628034,3066.3,3065.9,0.00231418]
[1763560511078,3.21628034,3066.3,3066.0,1.2506]
[1763560511682,3.74499034,3066.3,3066.2,2.2525]
[1763560511974,3.21628034,3066.3,3066.2,2.78122]
[1763560512281,3.74499034,3066.3,3066.2,2.2525]
[1763560512482,0.53719034,3066.3,3066.2,2.2525]
[1763560512782,3.60430531,3066.7,3066.6,3.5031]
[1763560513472,3.2078,3067.2,3066.6,3.5031]
[1763560513681,3.2078,3067.2,3066.2,3.2078]
[1763560513682,0.52871,3066.3,3066.2,3.2078]
[1763560514072,0.52873,3066.2,3066.1,2.2525]
[1763560514279,0.52874,3066.1,3066.0,1.2506]
[1763560516082,0.52874,3066.1,3064.2,1.2506]
[1763560516083,0.52905,3064.3,3064.2,1.2506]
[1763560516274,0.52916,3063.7,3063.6,1.2506]
[1763560516976,0.53223853,3063.7,3063.6,1.25377222]
[1763560517181,0.00307853,3063.7,3063.6,1.25377222]
[1763560521488,0.00307853,3063.7,3063.6,0.00317222]
[1763560521679,0.52926,3063.1,3063.0,1.2506]
[1763560521879,3.2078,3063.1,3063.0,1.2506]
[1763560522079,0.00307853,3063.7,3063.6,0.52917]
[1763560522280,0.00307853,3063.7,3063.0,4.4584]
[1763560522480,0.00307853,3063.7,3063.0,4.98767]
[1763560522781,0.52924,3063.2,3063.1,0.52926]
[1763560523381,0.00307853,3063.7,3063.0,4.4656985]
[1763560523585,0.00307853,3063.7,3063.0,4.9949785]
[1763560523886,0.00307853,3063.7,3063.3,2.2525]
[1763560524093,0.53223853,3063.7,3063.2,0.87342085]
[1763560524384,0.00307853,3063.7,3063.6,2.2525]
[1763560524593,0.52921,3063.4,3063.3,2.85882085]
[1763560524774,0.52921,3063.4,3063.3,1.9854]
[1763560525183,0.52926,3063.1,3063.0,7.32451935]
[1763560525581,0.52926,3063.1,3063.0,5.33856862]
[1763560525777,0.52926,3063.1,3063.0,4.4656985]
[1763560526383,0.52926,3063.1,3063.0,6.4510985]
[1763560526994,0.52924,3063.2,3063.1,1.9854]
[1763560527386,0.00307853,3063.7,3063.1,1.9854]
[1763560527581,0.00307853,3063.7,3063.0,4.4656985]
[1763560527780,0.53223853,3063.7,3063.6,3.81937]
[1763560527984,0.00307853,3063.7,3063.6,3.81937]
[1763560528591,0.52902,3064.6,3064.5,0.529]
[1763560528785,0.52894,3065.0,3064.8,0.52895]
[1763560529093,3.73672,3065.1,3064.9,0.52893]
[1763560529289,3.73672,3065.1,3065.0,0.52893]
[1763560529493,3.73936427,3065.1,3065.0,0.52893]
[1763560529787,3.21044427,3065.1,3064.5,3.2078]
[1763560529991,3.21044427,3065.1,3064.5,3.21269045]
[1763560529992,0.52898,3064.7,3064.5,3.21269045]
[1763560530181,0.52898,3064.7,3064.5,3.74169045]
[1763560530383,0.52895,3065.0,3064.7,0.52898]
[1763560530589,0.52896,3064.9,3064.7,0.52898]
[1763560530884,0.52894,3065.0,3064.6,0.529]
[1763560531090,3.21533472,3065.1,3064.7,0.52898]
[1763560531388,0.52896,3064.9,3064.8,1.9854]
[1763560531887,3.21533472,3065.1,3065.0,1.9854]
[1763560532290,0.00753472,3065.1,3065.0,2.51433]
[1763560532492,0.00753472,3065.1,3065.0,1.9854]
[1763560532686,0.00753472,3065.1,3065.0,2.51433]
[1763560533082,0.53644472,3065.1,3065.0,1.9854]
[1763560533495,0.00753472,3065.1,3065.0,1.9854]
[1763560533795,0.53644472,3065.1,3065.0,1.9854]
[1763560534093,0.53644472,3065.1,3064.8,1.2667]
[1763560534094,0.52895,3064.9,3064.8,1.2667]
[1763560534485,0.52895,3064.9,3064.8,3.322]
[1763560534888,0.00753472,3065.1,3065.0,2.0553]
[1763560535088,0.00753472,3065.1,3065.0,2.58423]
[1763560535289,3.472e-05,3065.1,3065.0,2.58423]
[1763560535489,3.73665,3065.5,3065.4,3.322]
[1763560535698,0.52891,3065.1,3065.0,2.92707202]
[1763560535891,0.52891,3065.1,3065.0,2.0553]
[1763560536395,0.00387291,3065.1,3065.0,2.05789985]
[1763560536590,0.00387291,3065.1,3065.0,2.58682985]
[1763560536792,0.00387291,3065.1,3065.0,0.00259985]
[1763560536991,7.62119728,3065.1,3065.0,0.00259985]
[1763560537292,7.62119728,3065.1,3065.0,2.05789985]
[1763560537293,0.00387291,3065.1,3065.0,2.05789985]
[1763560537498,0.00387291,3065.1,3065.0,2.58682985]
[1763560537691,0.00387291,3065.1,3065.0,0.00259985]
[1763560537889,0.53278291,3065.1,3065.0,0.00259985]
[1763560538693,2.43888291,3065.1,3065.0,0.00259985]
[1763560539393,0.53278291,3065.1,3065.0,1.95739985]
[1763560539585,0.53278291,3065.1,3065.0,0.00259985]
[1763560539792,2.26948291,3065.1,3065.0,0.00259985]
[1763560542004,5.47728291,3065.1,3065.0,0.00259985]
[1763560542294,0.529,3064.6,3064.5,0.00489045]
[1763560542699,0.53279291,3065.1,3065.0,1.9548]
[1763560542893,0.00387291,3065.1,3065.0,2.48373]
[1763560543094,0.53278291,3065.1,3065.0,1.9548]
[1763560543295,0.53278291,3065.1,3065.0,2.48700882]
[1763560544205,0.00387291,3065.1,3065.0,2.48700882]
[1763560544395,0.00387291,3065.1,3065.0,3.35878084]
[1763560545597,0.53278291,3065.1,3065.0,1.95807882]
[1763560546503,0.00387291,3065.1,3065.0,2.48700882]
[1763560546704,0.53278291,3065.1,3065.0,3.64934664]
[1763560546904,0.00387291,3065.1,3065.0,3.64934664]
[1763560547102,0.00489045,3065.4,3065.3,2.48368]
[1763560547295,0.53375045,3065.4,3065.3,1.9548]
[1763560547498,0.00489045,3065.4,3065.3,2.48368]
[1763560547699,0.53375045,3065.4,3065.3,2.48368]
[1763560547899,0.00489045,3065.4,3065.3,2.48368]
[1763560548101,0.00901085,3065.4,3065.3,2.48368]
[1763560548606,3.2078,3067.4,3066.0,1.1361]
[1763560548801,0.52859,3067.0,3066.9,3.2078]
[1763560549200,0.52862,3066.8,3066.7,0.87428674]
[1763560549409,0.52866,3066.6,3066.5,3.2078]
[1763560549704,0.53221051,3066.6,3066.5,5.1626]
[1763560550096,0.53221051,3066.6,3066.5,3.2078]
[1763560550499,0.52871,3066.3,3066.2,0.87917719]
[1763560550704,2.08185051,3066.6,3066.2,0.87917719]
[1763560550705,4.89646331,3066.5,3066.2,0.00489045]
[1763560550899,0.52868,3066.5,3066.4,1.9548]
[1763560551406,0.52871,3066.3,3066.2,5.16749045]
[1763560551706,0.00355051,3066.6,3066.2,5.16749045]
[1763560551902,0.53221051,3066.6,3066.5,2.48347]
[1763560552106,0.00355051,3066.6,3066.5,2.48347]
[1763560553009,0.00355051,3066.6,3066.5,1.9548]
[1763560553307,0.00355051,3066.6,3066.5,2.48347]
[1763560553897,0.53349045,3066.9,3066.8,1.9548]
[1763560554102,0.00489045,3066.9,3066.8,5.69122]
[1763560554302,0.00489045,3066.9,3066.8,5.1626]
[1763560554503,0.53349045,3066.9,3066.8,5.1626]
[1763560555009,0.00790906,3066.9,3066.8,5.69122]
[1763560555711,1.68866331,3067.4,3066.8,5.69122]
[1763560555712,3.2078,3068.1,3067.6,1.9548]
[1763560555907,0.52847,3067.7,3067.6,5.1626]
[1763560556216,0.52844,3067.9,3067.8,1.9548]
[1763560556710,0.52842,3068.0,3067.9,1.9548]
[1763560556911,0.00316558,3068.2,3068.1,2.4832]
[1763560557222,0.00666892,3068.2,3068.1,5.691]
[1763560557408,0.00666892,3068.2,3068.1,6.85671566]
[1763560557813,0.00666892,3068.2,3068.1,6.32831566]
[1763560558108,0.00666892,3068.2,3068.1,5.1626]
[1763560558622,2.61334892,3068.2,3068.1,3.2078]
[1763560558829,0.00666892,3068.2,3068.1,5.1626]
[1763560559126,0.53504892,3068.2,3068.1,5.1626]
[1763560559326,0.00666892,3068.2,3068.1,5.691]
[1763560560420,3.2078,3069.9,3069.0,3.0909]
[1763560560730,0.5282,3069.3,3069.2,1.9548]
[1763560561029,3.2078,3069.9,3069.1,3.2078]
[1763560561030,0.52814,3069.6,3069.5,1.9548]
[1763560561332,0.53090797,3069.6,3069.5,1.9548]
[1763560561528,0.52821,3069.2,3069.1,3.2078]
[1763560561923,0.52828,3068.8,3068.7,5.0238]
[1763560562129,0.52828,3068.8,3068.7,3.2078]
[1763560562320,0.52826,3069.0,3068.7,5.0238]
[1763560562624,0.52826,3068.9,3068.8,1.816]
[1763560563023,0.52826,3068.9,3068.8,2.34428]
[1763560563424,1.68866331,3069.3,3068.8,1.816]
[1763560563624,0.52826,3068.9,3068.8,1.816]
[1763560563926,0.52826,3068.9,3068.8,5.0238]
[1763560564427,0.52826,3068.9,3068.8,5.55208]
[1763560564732,1.68866331,3069.3,3068.8,3.73607]
[1763560564923,0.52825,3069.0,3068.8,5.0238]
[1763560565230,0.52826,3068.9,3068.8,3.2078]
[1763560565423,2.37076,3068.9,3068.8,3.2078]
[1763560565628,4.05942331,3068.9,3068.8,3.2078]
[1763560567518,1.8425,3068.5,3068.0,3.2078]
[1763560567724,0.5284,3068.1,3068.0,5.55221]
[1763560567929,0.5284,3068.1,3068.0,5.0238]
[1763560568531,0.5284,3068.1,3068.0,3.2078]
[1763560569224,4.05956331,3068.1,3068.0,3.2078]
[1763560569819,0.52843,3067.9,3067.8,1.824349]
[1763560570331,6.02806331,3069.0,3068.4,1.816]
[1763560570531,0.52831,3068.7,3068.6,1.816]
[1763560571729,0.52834,3068.4,3068.3,3.2078]
[1763560572031,0.52834,3068.4,3068.3,5.0238]
[1763560573132,0.52834,3068.4,3068.3,3.2078]
[1763560573938,0.52834,3068.4,3068.3,5.0238]
[1763560574233,2.37084,3068.4,3068.3,3.2078]
[1763560574434,3.2078,3069.0,3068.4,2.9728]
[1763560574635,0.52834,3068.5,3068.4,2.9728]
[1763560575535,0.48986797,3069.6,3068.8,0.52826]
[1763560575836,0.00276797,3069.6,3069.5,5.0238]
[1763560576032,0.53090797,3069.6,3069.5,1.816]
[1763560576233,0.00276797,3069.6,3069.5,5.55196]
[1763560576941,1.1316,3070.8,3070.2,1.816]
[1763560576942,3.2078,3070.7,3070.2,1.816]
[1763560577334,0.52802,3070.3,3070.2,1.816]
[1763560577529,0.52802,3070.3,3070.2,2.9728]
[1763560577737,0.52804,3070.2,3070.1,0.00489045]
[1763560578041,0.00389806,3070.2,3070.1,2.35267589]
[1763560578242,0.53193806,3070.2,3070.1,1.82462589]
[1763560578545,2.37443806,3070.2,3070.1,0.00862589]
[1763560578736,4.06310137,3070.2,3070.1,0.00862589]
[1763560578940,0.00389806,3070.2,3070.1,1.82462589]
[1763560579246,0.00389806,3070.2,3070.1,2.35267589]
[1763560579639,0.53193806,3070.2,3070.1,1.82462589]
[1763560579948,2.37443806,3070.2,3070.1,0.00862589]
[1763560580449,3.50603806,3070.2,3070.1,0.00862589]
[1763560580640,3.50603806,3070.2,3069.6,0.8709392]
[1763560580641,0.52812,3069.7,3069.6,3.2078]
[1763560580836,0.52819,3069.3,3069.2,5.0238]
[1763560581145,0.52819,3069.3,3069.2,5.8947392]
[1763560581346,0.52819,3069.3,3069.2,5.89610177]
[1763560581547,0.52819,3069.3,3069.2,5.8994406]
[1763560581946,0.00489045,3069.6,3069.5,1.816]
[1763560582143,0.53303045,3069.6,3069.5,1.816]
[1763560583245,0.52817,3069.4,3069.3,0.87230177]
[1763560584151,0.52819,3069.3,3069.2,3.21113883]
[1763560584460,2.37069,3069.3,3069.2,3.21113883]
[1763560587053,2.33804,3069.0,3068.9,0.00489045]
[1763560587239,4.02670331,3069.0,3068.9,0.00489045]
[1763560588052,4.02670331,3069.0,3068.9,0.00900462]
[1763560589251,5.05370331,3069.0,3068.9,0.00900462]
[1763560589749,4.02670331,3069.0,3068.9,0.00900462]
[1763560590250,0.52824,3069.0,3068.9,1.70010462]
[1763560590644,0.52824,3069.0,3068.9,0.00900462]
[1763560590645,2.33804,3069.0,3068.9,0.00900462]
[1763560591456,0.52824,3069.0,3068.9,1.70010462]
[1763560592045,0.52822,3069.1,3069.0,2.759]
[1763560592240,0.52822,3069.1,3069.0,3.63417436]
[1763560592454,0.52822,3069.1,3069.0,2.759]
[1763560592953,0.00489045,3069.6,3069.4,1.8319]
[1763560593146,2.25204,3069.0,3068.9,0.88425397]
[1763560593346,5.45984,3069.0,3068.9,0.88425397]
[1763560593551,0.52824,3069.0,3068.9,1.84090462]
[1763560593750,2.25204,3069.0,3068.9,0.00900462]
[1763560594047,0.52824,3069.0,3068.9,2.71618346]
[1763560594253,0.52824,3069.0,3068.9,1.84090462]
[1763560594557,3.73597,3069.4,3069.3,1.8319]
[1763560595441,3.2078,3069.4,3069.1,0.87517376]
[1763560595651,0.52821,3069.2,3069.1,2.99296427]
[1763560596153,0.52819,3069.3,3069.2,2.36009]
[1763560596954,0.00389806,3070.2,3070.1,1.8319]
[1763560597160,1.7238,3070.0,3069.8,0.87491662]
[1763560597650,0.52809,3069.9,3069.8,3.23491662]
[1763560598348,0.00389806,3070.2,3070.1,1.8319]
[1763560598548,0.53193806,3070.2,3070.1,1.8319]
[1763560599349,0.53193806,3070.2,3070.1,2.70681662]
[1763560599854,2.25185,3070.1,3070.0,0.87491662]
[1763560600053,0.52809,3069.9,3069.8,1.8319]
[1763560600253,0.52809,3069.9,3069.8,2.70719796]
[1763560601158,0.52809,3069.9,3069.8,1.8319]
[1763560601554,0.52809,3069.9,3069.8,0.87527932]
[1763560601855,0.5281,3069.8,3069.7,3.52657549]
[1763560603054,0.5281,3069.8,3069.7,2.36002]
[1763560603245,0.5281,3069.8,3069.7,2.99893441]
[1763560603950,0.5281,3069.8,3069.7,1.8319]
[1763560604457,0.5281,3069.8,3069.7,2.70769186]
[1763560605249,0.5281,3069.8,3069.7,1.8319]
[1763560605948,0.5281,3069.8,3069.7,2.99893441]
[1763560606150,0.5281,3069.8,3069.7,1.8319]
[1763560606358,0.5281,3069.8,3069.7,3.58173324]
[1763560606856,0.52809,3069.9,3069.8,2.35997]
[1763560607252,2.25189,3069.9,3069.8,1.1679583]
[1763560607458,0.5281,3069.8,3069.7,1.1679583]
[1763560607655,0.5281,3069.8,3069.7,2.9998583]
[1763560607956,2.2519,3069.8,3069.7,1.1679583]
[1763560608154,0.52814,3069.6,3069.5,1.74983324]
[1763560608452,0.00389806,3070.2,3069.7,0.52811]
[1763560608652,0.00389806,3070.2,3069.9,0.87609304]
[1763560608858,0.00389806,3070.2,3069.9,1.8319]
[1763560608859,0.52807,3070.0,3069.9,1.8319]
[1763560609260,0.52805,3070.1,3070.0,1.59595]
[1763560609462,0.52805,3070.1,3070.0,3.42785]
[1763560609654,0.00389806,3070.2,3070.1,2.35995]
[1763560609859,0.53193806,3070.2,3070.1,3.00001298]
[1763560610459,0.00389806,3070.2,3070.1,3.52806298]
[1763560610663,0.00389806,3070.2,3070.1,2.35995]
[1763560610862,0.00389806,3070.2,3070.1,4.11213609]
[1763560611067,0.53193806,3070.2,3070.1,3.58408609]
[1763560611364,0.53193806,3070.2,3070.1,1.8319]
[1763560611955,0.00389806,3070.2,3070.1,2.35995]
[1763560612266,3.2078,3071.0,3070.9,1.8319]
[1763560612453,3.7357,3071.0,3070.9,1.8319]
[1763560612658,0.52795,3070.7,3070.6,0.88035697]
[1763560612855,0.52795,3070.7,3070.6,1.83679045]
[1763560613055,0.52795,3070.7,3070.6,2.7122924]
[1763560613268,0.53053924,3070.7,3070.6,2.7122924]
[1763560613969,0.00258924,3070.7,3070.6,2.7122924]
[1763560614470,0.53053924,3070.7,3070.6,2.7122924]
[1763560614864,0.53053924,3070.7,3070.6,1.83679045]
[1763560616462,2.25433924,3070.7,3070.6,0.00489045]
[1763560617061,0.00258924,3070.7,3070.6,2.36476045]
[1763560617465,0.52793,3070.9,3070.8,2.35982]
[1763560617664,3.2078,3071.0,3070.8,2.35982]
[1763560617860,3.2078,3071.0,3070.9,3.23449819]
[1763560618465,3.73983329,3071.0,3070.9,2.70658819]
[1763560618970,3.73983329,3071.0,3070.9,3.23449819]
[1763560619268,3.73983329,3071.0,3070.9,2.70658819]
[1763560619768,3.73983329,3071.0,3070.9,1.8319]
[1763560620370,0.00413329,3071.0,3070.9,2.35981]
[1763560620572,0.00413329,3071.0,3070.9,3.52606288]
[1763560620864,0.53203329,3071.0,3070.9,1.8319]
[1763560621274,2.25173,3070.8,3070.7,1.16625288]
[1763560621466,2.25175,3070.7,3070.6,0.00489045]
[1763560625073,2.57845,3070.7,3070.6,0.00489045]
[1763560625670,0.52802,3070.3,3070.2,2.50570897]
[1763560625870,3.73582,3070.3,3070.2,2.50570897]
[1763560626073,5.30432,3070.3,3070.2,0.87510897]
[1763560626275,3.73582,3070.3,3070.2,2.50570897]
[1763560626873,5.30432,3070.3,3070.2,0.87510897]
[1763560627374,2.5577,3070.0,3069.9,0.00489045]
[1763560627570,3.08577,3070.0,3069.9,0.00489045]
[1763560628170,0.52807,3070.0,3069.9,1.63549045]
[1763560629381,3.08577,3070.0,3069.9,0.00489045]
[1763560629572,2.09657,3070.0,3069.9,0.00489045]
[1763560629978,0.52807,3070.0,3069.9,1.63549045]
[1763560631173,2.09657,3070.0,3069.9,0.00489045]
[1763560632485,3.08577,3070.0,3069.9,0.00489045]
[1763560633485,2.09657,3070.0,3069.9,0.00489045]
[1763560634572,2.09657,3070.0,3069.9,1.63549045]
[1763560634777,0.52807,3070.0,3069.9,1.63549045]
[1763560634973,3.2078,3070.3,3069.9,1.63549045]
[1763560635174,3.73582,3070.3,3070.2,1.6306]
[1763560635380,3.73582,3070.3,3070.2,2.15864]
[1763560635786,3.73582,3070.3,3070.2,1.6306]
[1763560635987,3.73582,3070.3,3070.2,2.15864]
[1763560636187,3.73582,3070.3,3070.2,1.6306]
[1763560637786,0.52802,3070.3,3070.2,1.6306]
[1763560638790,2.09652,3070.3,3070.2,1.6306]
[1763560638989,0.52805,3070.1,3070.0,4.41383305]
[1763560639993,2.09655,3070.1,3070.0,1.75093305]
[1763560640191,0.52805,3070.1,3070.0,2.6629]
[1763560640385,0.52805,3070.1,3070.0,1.6306]
[1763560640994,0.52805,3070.1,3070.0,2.6629]
[1763560641492,2.09657,3070.0,3069.9,0.00489045]
[1763560641695,2.09657,3070.0,3069.9,1.63549045]
[1763560641899,0.52807,3070.0,3069.9,3.3864235]
[1763560642900,0.52807,3070.0,3069.9,1.63549045]
[1763560643095,2.09657,3070.0,3069.9,0.00489045]
[1763560643303,5.30437,3070.0,3069.9,0.00489045]
[1763560643502,3.73587,3070.0,3069.9,1.63549045]
[1763560644004,5.30437,3070.0,3069.9,1.63549045]
[1763560644301,3.73587,3070.0,3069.9,1.63549045]
[1763560644694,3.73587,3070.0,3069.9,2.16358045]
[1763560645799,3.2078,3070.0,3069.9,2.16358045]
[1763560645997,3.73587,3070.0,3069.9,1.63549045]
[1763560647194,3.73587,3070.0,3069.9,3.3864235]
[1763560647397,3.73587,3070.0,3069.9,1.63549045]
[1763560648200,3.73587,3070.0,3069.9,3.3864235]
[1763560648603,3.73587,3070.0,3069.9,3.9145135]
[1763560648903,3.21269045,3070.6,3070.5,2.5277]
[1763560649201,3.74066045,3070.6,3070.5,2.5277]
[1763560649391,0.00489045,3070.6,3070.5,3.05568]
[1763560650195,0.53286045,3070.6,3070.5,2.5277]
[1763560650590,2.13888,3070.5,3070.4,4.96236781]
[1763560650796,2.13888,3070.5,3070.4,1.75456781]
[1763560651196,2.13888,3070.5,3070.4,1.5902]
[1763560651599,2.0836,3070.4,3070.3,1.75456781]
[1763560652199,2.08362,3070.3,3070.2,1.75456781]
[1763560653396,0.00489045,3070.6,3070.4,0.52799]
[1763560653594,0.00489045,3070.6,3070.5,2.3591]
[1763560653595,0.53286045,3070.6,3070.5,2.3591]
[1763560653794,0.53286045,3070.6,3070.5,2.88708]
[1763560654395,0.53286045,3070.6,3070.5,2.3591]
[1763560654701,0.00489045,3070.6,3070.5,4.64295683]
[1763560654908,0.53286045,3070.6,3070.5,4.11497683]
[1763560655611,2.0836,3070.4,3070.3,1.75587683]
[1763560655798,1.5556,3070.3,3070.2,1.75587683]
[1763560656104,1.5556,3070.3,3070.0,3.2078]
[1763560656105,2.08365,3070.1,3070.0,4.96367683]
[1763560656302,2.08365,3070.1,3070.0,3.2078]
[1763560657406,2.08365,3070.1,3070.0,4.37818716]
[1763560658308,0.52805,3070.1,3070.0,4.652]
[1763560658508,3.2078,3070.5,3070.2,1.4442]
[1763560658709,3.2078,3070.5,3070.2,2.61470505]
[1763560658906,0.52802,3070.3,3070.2,3.14273505]
[1763560659109,0.52802,3070.3,3070.2,1.97223]
[1763560659505,0.52802,3070.3,3070.2,1.4442]
[1763560660414,0.52802,3070.3,3070.2,1.97224]
[1763560660609,0.52802,3070.3,3070.2,1.4442]
[1763560660912,0.52802,3070.3,3070.2,3.72811683]
[1763560661714,0.52802,3070.3,3070.2,3.19992003]
[1763560663110,0.00489045,3070.6,3070.2,3.19992003]
[1763560663111,0.00489045,3070.6,3070.5,2.3591]
[1763560663313,0.53286045,3070.6,3070.5,3.5295821]
[1763560664007,2.08846045,3070.6,3070.5,2.6146821]
[1763560664608,2.08846045,3070.6,3070.5,1.1704821]
[1763560664808,2.08846045,3070.6,3070.5,1.4442]
[1763560665016,2.08846045,3070.6,3070.5,2.61526527]
[1763560665517,0.53286045,3070.6,3070.5,3.5301653]
[1763560666014,2.08846045,3070.6,3070.5,2.6152653]
[1763560666213,0.00489045,3070.6,3070.5,3.5301653]
[1763560666409,0.00489045,3070.6,3070.5,2.88708]
[1763560666917,0.00489045,3070.6,3070.5,5.21851133]
[1763560667421,1.68746269,3070.6,3070.4,1.4442]
[1763560667715,0.52798,3070.5,3070.4,4.652]
[1763560668316,0.52798,3070.5,3070.4,3.20034352]
[1763560669206,0.52798,3070.5,3070.4,1.4442]
[1763560669414,0.52798,3070.5,3070.4,3.20021874]
[1763560669916,0.52798,3070.5,3070.4,1.4442]
[1763560670725,2.08358,3070.5,3070.4,3.20021674]
[1763560671620,0.52798,3070.5,3070.4,3.4442]
[1763560673015,0.52798,3070.5,3070.4,5.20023141]
[1763560673315,0.52798,3070.5,3070.4,3.4442]
[1763560673519,0.52798,3070.5,3070.4,5.20051347]
[1763560674020,0.52798,3070.5,3070.4,3.4442]
[1763560674610,0.00489045,3070.6,3070.5,2.88708]
[1763560675315,2.08846045,3070.6,3070.5,4.11579087]
[1763560676418,2.08846045,3070.6,3070.5,3.20089087]
[1763560677420,0.53286045,3070.6,3070.5,2.88708]
[1763560677716,0.00413329,3071.0,3070.9,1.97211]
[1763560678115,3.329e-05,3071.0,3070.9,5.17991]
[1763560678318,0.52786,3071.3,3071.2,1.4442]
[1763560678822,0.52783,3071.4,3071.3,0.52782]
[1763560679025,3.2078,3071.7,3071.6,1.4442]
[1763560679221,3.21176568,3071.7,3071.6,2.61731231]
[1763560679723,3.73551,3072.1,3072.0,2.3591]